bitfinex/quotes_BTCUSD_20240918
["timestamp","ask_amount","ask_price","bid_price","bid_amount"]
[1726663278214,0.000821,60043.0,60042.0,1.01157]
[1726663279122,0.000821,60043.0,60042.0,1.34467]
[1726663281715,0.000821,60043.0,60042.0,0.08702]
[1726663282174,0.00158921,60043.0,60042.0,0.08702]
[1726663282404,0.01951607,60043.0,60042.0,0.08702]
[1726663282636,0.99737788,60043.0,60042.0,0.08702]
[1726663282884,1.1920335,60043.0,60042.0,0.08702]
[1726663283105,1.1920335,60043.0,60042.0,0.008]
[1726663283106,1.5251275,60043.0,60042.0,0.008]
[1726663283327,1.1920335,60043.0,60042.0,0.008]
[1726663283563,1.5251275,60043.0,60042.0,0.008]
[1726663284076,1.1920335,60043.0,60042.0,0.008]
[1726663284302,0.499674,60039.0,60038.0,0.001642]
[1726663284524,0.66272767,60039.0,60038.0,0.001642]
[1726663284755,0.68071673,60039.0,60038.0,0.001642]
[1726663285228,0.68071673,60039.0,60038.0,0.080662]
[1726663285717,0.68137708,60039.0,60038.0,0.080662]
[1726663286421,0.70750996,60039.0,60038.0,0.083662]
[1726663286674,0.68137708,60039.0,60038.0,0.083662]
[1726663287800,1.01449308,60039.0,60038.0,0.083662]
[1726663288281,1.89218245,60039.0,60038.0,0.083662]
[1726663288504,1.89218245,60039.0,60038.0,0.004642]
[1726663289225,1.89218245,60039.0,60038.0,0.001642]
[1726663289456,1.91931959,60039.0,60038.0,0.002642]
[1726663289696,2.25243559,60039.0,60038.0,0.002642]
[1726663289929,1.91831959,60039.0,60038.0,0.001642]
[1726663290159,2.25143559,60039.0,60038.0,0.001642]
[1726663291768,2.25143559,60039.0,60028.0,0.001642]
[1726663291769,1.714274,60029.0,60028.0,0.001642]
[1726663291977,2.03100104,60029.0,60028.0,0.001642]
[1726663292389,2.03163082,60029.0,60028.0,0.001642]
[1726663292888,2.38712945,60029.0,60028.0,0.001642]
[1726663293098,2.7038884,60029.0,60028.0,0.001642]
[1726663293330,2.7048884,60029.0,60028.0,0.002642]
[1726663293759,2.7038884,60029.0,60028.0,0.001642]
[1726663294458,2.7038884,60029.0,60027.0,0.001642]
[1726663294459,2.20114637,60028.0,60027.0,0.001642]
[1726663294696,2.36420004,60028.0,60027.0,0.001642]
[1726663294934,2.52796567,60028.0,60027.0,0.001642]
[1726663295871,2.55978094,60028.0,60027.0,0.001642]
[1726663296337,2.58592592,60028.0,60027.0,0.001642]
[1726663296568,2.55978094,60028.0,60027.0,0.001642]
[1726663299404,2.58592596,60028.0,60027.0,0.001642]
[1726663301019,1.924627,60023.0,60017.0,0.00164]
[1726663301246,2.46045404,60023.0,60017.0,0.00164]
[1726663301472,2.47872632,60023.0,60017.0,0.00164]
[1726663302713,2.49272632,60023.0,60017.0,0.00164]
[1726663303202,2.49272632,60023.0,60012.0,0.001642]
[1726663303203,0.38163,60013.0,60012.0,0.001642]
[1726663303439,1.21120567,60013.0,60012.0,0.001642]
[1726663303678,1.87772767,60013.0,60012.0,0.001642]
[1726663304171,2.21098867,60013.0,60012.0,0.001642]
[1726663304412,2.21098867,60013.0,59996.0,0.001642]
[1726663304413,1.53322337,60006.0,59996.0,0.001642]
[1726663304690,2.36487704,60006.0,59996.0,0.001642]
[1726663304938,2.21120367,60006.0,59996.0,0.001642]
[1726663305174,2.21168852,60006.0,59996.0,0.001642]
[1726663305651,2.36536189,60006.0,59996.0,0.001642]
[1726663305886,2.52844747,60006.0,59996.0,0.001642]
[1726663306367,2.55460147,60006.0,59996.0,0.001642]
[1726663309611,2.56860147,60006.0,59996.0,0.001642]
[1726663310829,2.59604734,60006.0,59996.0,0.001642]
[1726663311539,2.26274734,60006.0,59996.0,0.001642]
[1726663311764,2.09966176,60006.0,59996.0,0.001642]
[1726663312641,1.92098839,60006.0,59996.0,0.001642]
[1726663313319,2.04850776,60006.0,59996.0,0.001642]
[1726663313551,2.03450776,60006.0,59996.0,0.001642]
[1726663313764,2.04850776,60006.0,59996.0,0.001642]
[1726663314201,2.05750776,60006.0,59996.0,0.001642]
[1726663314414,2.07150776,60006.0,59996.0,0.001642]
[1726663315987,2.05750776,60006.0,59996.0,0.001642]
[1726663316192,2.07150776,60006.0,59996.0,0.001642]
[1726663316401,2.09766021,60006.0,59996.0,0.001642]
[1726663317565,2.09966021,60006.0,59996.0,0.001642]
[1726663318688,2.09946021,60006.0,59996.0,0.001642]
[1726663318915,2.09896021,60006.0,59996.0,0.001642]
[1726663319129,2.09876021,60006.0,59996.0,0.001642]
[1726663319337,2.09866021,60006.0,59996.0,0.001642]
[1726663319544,2.09846021,60006.0,59996.0,0.001642]
[1726663319756,2.09806021,60006.0,59996.0,0.001642]
[1726663319989,2.09786021,60006.0,59996.0,0.001642]
[1726663320199,2.09776021,60006.0,59996.0,0.001642]
[1726663320439,2.09746021,60006.0,59996.0,0.001642]
[1726663320655,2.09706021,60006.0,59996.0,0.001642]
[1726663320880,2.09696021,60006.0,59996.0,0.001642]
[1726663321098,2.09676021,60006.0,59996.0,0.001642]
[1726663321329,2.17938837,60006.0,59996.0,0.001642]
[1726663321546,1.94248684,60006.0,59996.0,0.001642]
[1726663321760,2.09606021,60006.0,59996.0,0.001642]
[1726663321982,2.52816021,60006.0,59996.0,0.001642]
[1726663322208,2.52796021,60006.0,59996.0,0.001642]
[1726663322436,2.69104579,60006.0,59996.0,0.001642]
[1726663324275,2.53737242,60006.0,59996.0,0.001642]
[1726663324497,2.69104579,60006.0,59996.0,0.001642]
[1726663325419,2.19466021,60006.0,59996.0,0.001642]
[1726663328814,2.09566021,60006.0,59996.0,0.001642]
[1726663331031,2.09366021,60006.0,59996.0,0.001642]
[1726663331902,2.09566021,60006.0,59996.0,0.001642]
[1726663332125,2.09366021,60006.0,59996.0,0.001642]
[1726663332838,2.09566021,60006.0,59996.0,0.001642]
[1726663335945,2.09366021,60006.0,59999.0,0.093]
[1726663336380,2.06750776,60006.0,59999.0,0.093]
[1726663336592,1.85783439,60006.0,59999.0,0.093]
[1726663337793,1.48458837,60006.0,59999.0,0.093]
[1726663339119,1.47058837,60006.0,59999.0,0.093]
[1726663339381,1.86003948,60006.0,59996.0,0.001642]
[1726663339604,2.02571285,60006.0,59996.0,0.001642]
[1726663340317,1.87203948,60006.0,59996.0,0.001642]
[1726663340550,2.02571285,60006.0,59996.0,0.001642]
[1726663340800,2.08171285,60006.0,59996.0,0.001642]
[1726663341027,2.08371285,60006.0,59996.0,0.001642]
[1726663341975,2.08535685,60006.0,59996.0,0.001642]
[1726663344679,2.00614033,60006.0,59996.0,0.001642]
[1726663344893,2.1598137,60006.0,59996.0,0.001642]
[1726663345548,2.08535685,60006.0,59996.0,0.001642]
[1726663345833,2.18433741,60006.0,59996.0,0.001642]
[1726663346051,2.18531035,60006.0,59996.0,0.001642]
[1726663346724,2.08535685,60006.0,59996.0,0.001642]
[1726663347603,2.21029872,60006.0,59996.0,0.001642]
[1726663348268,2.05662535,60006.0,59996.0,0.001642]
[1726663348483,2.21029872,60006.0,59996.0,0.001642]
[1726663348702,2.08535685,60006.0,59996.0,0.001642]
[1726663353721,2.05920574,60006.0,59996.0,0.001642]
[1726663356656,2.08535845,60006.0,59996.0,0.001642]
[1726663363783,2.05920574,60006.0,59996.0,0.001642]
[1726663366769,2.08535828,60006.0,59996.0,0.001642]
[1726663368065,2.00655586,60006.0,59996.0,0.001642]
[1726663368494,2.00455586,60006.0,59996.0,0.001642]
[1726663368714,2.00655586,60006.0,59996.0,0.001642]
[1726663370899,1.99455586,60006.0,59996.0,0.001642]
[1726663371130,2.00855586,60006.0,59996.0,0.001642]
[1726663371571,1.99455586,60006.0,59996.0,0.001642]
[1726663371788,2.00855586,60006.0,59996.0,0.001642]
[1726663372207,1.99455586,60006.0,59996.0,0.001642]
[1726663372411,2.00855586,60006.0,59996.0,0.001642]
[1726663374161,2.00655586,60006.0,59996.0,0.001642]
[1726663374836,2.00855586,60006.0,59996.0,0.001642]
[1726663376643,2.03470827,60006.0,59996.0,0.001642]
[1726663377076,2.00855586,60006.0,59996.0,0.001642]
[1726663380200,2.1587329,60006.0,59996.0,0.001642]
[1726663380429,2.15880306,60006.0,59996.0,0.001642]
[1726663381085,2.15680306,60006.0,59996.0,0.001642]
[1726663381755,2.00655586,60006.0,59996.0,0.001642]
[1726663383138,2.00655586,60006.0,60001.0,0.1035614]
[1726663384294,1.95055586,60006.0,60001.0,0.1035614]
[1726663384422,2.00655586,60006.0,60001.0,0.1035614]
[1726663385276,2.15680306,60006.0,60001.0,0.1035614]
[1726663387685,2.18295517,60006.0,60001.0,0.1035614]
[1726663388401,2.15695517,60006.0,60001.0,0.1035614]
[1726663388606,2.18299931,60006.0,60001.0,0.1035614]
[1726663389224,2.15699931,60006.0,60001.0,0.1035614]
[1726663389438,2.18299931,60006.0,60001.0,0.1035614]
[1726663391327,2.18299931,60006.0,60001.0,0.0039614]
[1726663393395,2.15699931,60006.0,60001.0,0.0039614]
[1726663393725,2.18300275,60006.0,60001.0,0.0039614]
[1726663394387,2.18500275,60006.0,60001.0,0.0039614]
[1726663394815,2.18300275,60006.0,60001.0,0.0039614]
[1726663395043,2.18500275,60006.0,60001.0,0.0039614]
[1726663396179,2.18300275,60006.0,60001.0,0.0039614]
[1726663396396,2.18500275,60006.0,60001.0,0.0039614]
[1726663397086,2.36800797,60006.0,60001.0,0.0039614]
[1726663398342,2.03270797,60006.0,60001.0,0.0039614]
[1726663398549,2.02070797,60006.0,60001.0,0.0039614]
[1726663398979,2.36800797,60006.0,60001.0,0.0039614]
[1726663400653,2.03270797,60006.0,60001.0,0.0039614]
[1726663401155,2.18298784,60006.0,60001.0,0.0039614]
[1726663401416,2.03270797,60006.0,60001.0,0.0039614]
[1726663402463,1.97670797,60006.0,60001.0,0.0039614]
[1726663403011,1.95055586,60006.0,60001.0,0.0039614]
[1726663403792,0.48855652,60006.0,60005.0,0.19796549]
[1726663404050,0.19668237,60006.0,60005.0,0.19796549]
[1726663404298,0.36333237,60006.0,60005.0,0.14704455]
[1726663404537,0.19668237,60006.0,60005.0,0.096942]
[1726663405018,0.36333237,60006.0,60005.0,0.096942]
[1726663405460,0.19668237,60006.0,60005.0,0.096942]
[1726663405683,0.36333237,60006.0,60005.0,0.096942]
[1726663406145,0.69663237,60006.0,60005.0,0.096942]
[1726663406372,0.68263237,60006.0,60005.0,0.096942]
[1726663406596,0.68763237,60006.0,60005.0,0.096942]
[1726663411817,0.71378116,60006.0,60005.0,0.096942]
[1726663414092,0.68763237,60006.0,60005.0,0.096942]
[1726663414330,1.02093237,60006.0,60005.0,0.096942]
[1726663416998,1.04708116,60006.0,60005.0,0.096942]
[1726663431565,1.04708116,60006.0,60005.0,0.001642]
[1726663434481,1.38038116,60006.0,60005.0,0.001642]
[1726663434919,1.73668116,60006.0,60005.0,0.001642]
[1726663435136,1.91350409,60006.0,60005.0,0.001642]
[1726663435589,2.00700409,60006.0,60005.0,0.001642]
[1726663436269,2.00500409,60006.0,60005.0,0.001642]
[1726663436488,2.03500409,60006.0,60005.0,0.001642]
[1726663436712,2.03700409,60006.0,60005.0,0.001642]
[1726663436931,2.03500409,60006.0,60005.0,0.001642]
[1726663437573,1.94150409,60006.0,60005.0,0.001642]
[1726663438314,1.96765567,60006.0,60005.0,0.001642]
[1726663443180,1.93765567,60006.0,60005.0,0.001642]
[1726663443445,1.50338395,60006.0,60005.0,0.001642]
[1726663443926,0.71378395,60006.0,60005.0,0.001642]
[1726663444161,0.18768237,60006.0,60005.0,0.001642]
[1726663444378,0.18768237,60006.0,60005.0,0.264194]
[1726663444379,0.0246287,60006.0,60005.0,0.264194]
[1726663444599,0.0246287,60006.0,60005.0,0.597499]
[1726663444819,0.006644,60006.0,60005.0,0.597499]
[1726663445048,0.006644,60006.0,60005.0,0.097542]
[1726663445486,0.01748195,60006.0,60005.0,0.097542]
[1726663445722,0.001644,60006.0,60005.0,0.097542]
[1726663446054,0.01748195,60006.0,60005.0,0.097542]
[1726663447023,0.04363092,60006.0,60005.0,0.097542]
[1726663447749,0.04563092,60006.0,60005.0,0.097542]
[1726663448211,0.01948195,60006.0,60005.0,0.097542]
[1726663448447,0.02002452,60006.0,60005.0,0.097542]
[1726663450132,0.18667452,60006.0,60005.0,0.097542]
[1726663450377,0.02002452,60006.0,60005.0,0.097542]
[1726663451686,0.02002452,60006.0,60005.0,0.264194]
[1726663452142,0.02002452,60006.0,60005.0,0.930804]
[1726663452425,0.003644,60006.0,60005.0,0.176562]
[1726663452871,0.02011353,60006.0,60005.0,0.176562]
[1726663453324,0.85336353,60006.0,60005.0,0.172562]
[1726663453565,0.85336353,60006.0,60005.0,0.080662]
[1726663453846,0.87951193,60006.0,60005.0,0.080662]
[1726663454067,0.85336353,60006.0,60005.0,0.080662]
[1726663454284,0.85136353,60006.0,60005.0,0.080662]
[1726663454507,0.85236353,60006.0,60005.0,0.082662]
[1726663455674,0.51906353,60006.0,60005.0,0.082662]
[1726663455905,1.0154172,60006.0,60005.0,0.082662]
[1726663457214,1.04156629,60006.0,60005.0,0.082662]
[1726663464947,1.37486629,60006.0,60005.0,0.082662]
[1726663465170,1.9850228,60006.0,60005.0,0.082662]
[1726663465442,1.95887371,60006.0,60005.0,0.003642]
[1726663465922,1.95787371,60006.0,60005.0,0.001642]
[1726663466796,1.95987371,60006.0,60005.0,0.001642]
[1726663467065,1.98787371,60006.0,60005.0,0.001642]
[1726663467504,1.99287371,60006.0,60005.0,0.001642]
[1726663468393,2.02886626,60006.0,60005.0,0.001642]
[1726663469047,2.02386626,60006.0,60005.0,0.001642]
[1726663469301,2.03286626,60006.0,60005.0,0.001642]
[1726663469521,2.02386626,60006.0,60005.0,0.001642]
[1726663469937,1.98402955,60006.0,60005.0,0.001642]
[1726663474118,1.95787842,60006.0,60005.0,0.001642]
[1726663474808,1.95787842,60006.0,60005.0,0.1972618]
[1726663474809,0.03111353,60006.0,60005.0,0.1972618]
[1726663475034,0.03111353,60006.0,60005.0,0.2012618]
[1726663475266,0.03127892,60006.0,60005.0,0.2012618]
[1726663475486,0.03127892,60006.0,60005.0,0.3679138]
[1726663475707,0.03127892,60006.0,60005.0,0.2072618]
[1726663475708,0.014644,60006.0,60005.0,0.2072618]
[1726663475928,0.001644,60006.0,60005.0,0.3739138]
[1726663476139,0.001644,60006.0,60005.0,0.42670131]
[1726663476140,0.002644,60006.0,60005.0,0.42670131]
[1726663476831,0.002644,60006.0,60005.0,0.76000631]
[1726663477305,0.02979073,60006.0,60005.0,0.76200631]
[1726663477758,0.02779073,60006.0,60005.0,0.76000631]
[1726663478225,0.02779073,60006.0,60005.0,1.09331131]
[1726663479156,0.02879073,60006.0,60005.0,1.09631131]
[1726663481652,0.02879073,60006.0,60005.0,0.76300631]
[1726663482239,0.02879073,60006.0,60005.0,1.09631131]
[1726663482873,0.02879073,60006.0,60005.0,0.76300631]
[1726663483437,0.002644,60006.0,60005.0,1.09631131]
[1726663486409,0.02879059,60006.0,60005.0,1.09631131]
[1726663487960,0.002644,60006.0,60005.0,1.09631131]
[1726663490098,0.02879059,60006.0,60005.0,1.09631131]
[1726663493374,0.02879059,60006.0,60005.0,0.76300631]
[1726663493605,0.02879059,60006.0,60005.0,1.09631131]
[1726663494043,0.002644,60006.0,60005.0,1.09631131]
[1726663496026,0.002644,60006.0,60005.0,1.04344462]
[1726663497292,0.02879066,60006.0,60005.0,0.71013962]
[1726663497592,0.02879066,60006.0,60005.0,1.04344462]
[1726663498016,0.002644,60006.0,60005.0,1.37674962]
[1726663498253,0.002644,60006.0,60005.0,1.45148873]
[1726663498488,0.002644,60006.0,60005.0,1.63562491]
[1726663498732,0.002644,60006.0,60005.0,1.71031807]
[1726663498968,0.002644,60006.0,60005.0,1.37701307]
[1726663499211,0.002644,60006.0,60005.0,1.0932623]
[1726663499449,0.002644,60006.0,60005.0,1.04344462]
[1726663501448,0.0287896,60006.0,60005.0,1.04344462]
[1726663501696,0.0287896,60006.0,60005.0,0.181294]
[1726663501971,0.002644,60006.0,60005.0,0.181294]
[1726663502205,0.01917284,60006.0,60005.0,0.014642]
[1726663502427,0.18582284,60006.0,60005.0,0.014642]
[1726663503179,0.01817284,60006.0,60005.0,0.011642]
[1726663503445,0.01917284,60006.0,60005.0,0.014642]
[1726663504454,0.85242284,60006.0,60005.0,0.014642]
[1726663504707,0.01917284,60006.0,60005.0,0.014642]
[1726663505795,0.01817284,60006.0,60005.0,0.011642]
[1726663505988,0.01817284,60006.0,60005.0,0.014642]
[1726663506887,0.01817284,60006.0,60005.0,0.181294]
[1726663507118,0.04432053,60006.0,60005.0,0.014642]
[1726663507365,0.18582284,60006.0,60005.0,0.014642]
[1726663508064,0.51912284,60006.0,60005.0,0.014642]
[1726663508512,0.18582284,60006.0,60005.0,0.014642]
[1726663508735,0.51912284,60006.0,60005.0,0.014642]
[1726663509100,0.52012284,60006.0,60005.0,0.017642]
[1726663509299,0.51812284,60006.0,60005.0,0.011642]
[1726663509704,0.51912284,60006.0,60005.0,0.014642]
[1726663510027,0.18582284,60006.0,60005.0,0.014642]
[1726663510767,0.18582284,60006.0,60005.0,0.014542]
[1726663510973,0.18582284,60006.0,60005.0,0.013942]
[1726663511197,0.18582284,60006.0,60005.0,0.013842]
[1726663511408,0.18582284,60006.0,60005.0,0.013742]
[1726663511637,0.18582284,60006.0,60005.0,0.013542]
[1726663511841,0.18582284,60006.0,60005.0,0.012942]
[1726663512042,0.18582284,60006.0,60005.0,0.012842]
[1726663512244,0.51912284,60006.0,60005.0,0.012742]
[1726663512557,0.18582284,60006.0,60005.0,0.012542]
[1726663512801,0.18582284,60006.0,60005.0,0.012042]
[1726663513024,0.18582284,60006.0,60005.0,0.011942]
[1726663513264,0.18582284,60006.0,60005.0,0.012463]
[1726663513507,0.18582284,60006.0,60005.0,0.012363]
[1726663513745,0.18582284,60006.0,60005.0,0.011863]
[1726663513973,0.18582284,60006.0,60005.0,0.011763]
[1726663514184,0.18582284,60006.0,60005.0,0.011463]
[1726663515037,0.51912284,60006.0,60005.0,0.011463]
[1726663515299,0.85242284,60006.0,60005.0,0.011463]
[1726663515767,0.51912284,60006.0,60005.0,0.011463]
[1726663516424,0.51812284,60006.0,60005.0,0.008463]
[1726663516647,0.51812284,60006.0,60005.0,0.011463]
[1726663517122,1.04062423,60006.0,60005.0,0.007463]
[1726663517545,1.37392423,60006.0,60005.0,0.007463]
[1726663519492,1.37392423,60006.0,60005.0,0.004463]
[1726663520375,1.37592423,60006.0,60005.0,0.004463]
[1726663524940,1.62592423,60006.0,60005.0,0.004463]
[1726663525145,2.03982423,60006.0,60005.0,0.004463]
[1726663525362,2.11487294,60006.0,60005.0,0.004463]
[1726663525606,2.03982423,60006.0,60005.0,0.004463]
[1726663525824,2.09072522,60006.0,60005.0,0.004463]
[1726663526496,2.01567651,60006.0,60005.0,0.004463]
[1726663527190,2.01367651,60006.0,60005.0,0.004463]
[1726663527628,2.02467651,60006.0,60005.0,0.004463]
[1726663528119,2.03667651,60006.0,60005.0,0.004463]
[1726663528392,2.36997651,60006.0,60005.0,0.004463]
[1726663528623,2.39997651,60006.0,60005.0,0.004463]
[1726663528831,2.55111939,60006.0,60005.0,0.004463]
[1726663529062,2.52811939,60006.0,60005.0,0.004463]
[1726663529515,2.40312806,60006.0,60005.0,0.004463]
[1726663529743,2.50411286,60006.0,60005.0,0.004463]
[1726663529974,2.40312806,60006.0,60005.0,0.004463]
[1726663530191,2.50411286,60006.0,60005.0,0.004463]
[1726663530425,2.603982,60006.0,60005.0,0.004463]
[1726663530689,2.617982,60006.0,60005.0,0.004463]
[1726663531160,2.80706758,60006.0,60005.0,1e-06]
[1726663531381,2.80706758,60006.0,60001.0,0.0039614]
[1726663531382,2.142871,60002.0,60001.0,0.0039614]
[1726663531618,2.48930947,60002.0,60001.0,0.0039614]
[1726663531841,2.50563874,60002.0,60001.0,0.0039614]
[1726663532709,0.032,59997.0,59982.0,0.0039614]
[1726663532956,2.35106347,59997.0,59982.0,0.0039614]
[1726663533384,2.37722024,59997.0,59982.0,0.0039614]
[1726663533609,2.91107102,59997.0,59982.0,0.0039614]
[1726663533824,2.98589905,59997.0,59982.0,0.0039614]
[1726663534089,2.82281347,59997.0,59982.0,0.0039614]
[1726663534580,2.82281347,59997.0,59996.0,1e-06]
[1726663535081,2.83681347,59997.0,59996.0,1e-06]
[1726663535318,2.83726496,59997.0,59996.0,1e-06]
[1726663535537,3.00035054,59997.0,59996.0,1e-06]
[1726663535851,3.01435054,59997.0,59996.0,1e-06]
[1726663536072,3.03015975,59997.0,59996.0,1e-06]
[1726663536731,2.89323332,59997.0,59996.0,1e-06]
[1726663537580,2.79224852,59997.0,59996.0,1e-06]
[1726663538287,2.89323332,59997.0,59996.0,1e-06]
[1726663538505,2.86523332,59997.0,59996.0,1e-06]
[1726663538950,2.87923332,59997.0,59996.0,1e-06]
[1726663539184,3.0283189,59997.0,59996.0,1e-06]
[1726663539407,2.9273341,59997.0,59996.0,1e-06]
[1726663539626,2.86323332,59997.0,59996.0,1e-06]
[1726663539838,2.86523332,59997.0,59996.0,1e-06]
[1726663540768,2.87923332,59997.0,59996.0,1e-06]
[1726663540995,2.86523332,59997.0,59996.0,1e-06]
[1726663541220,3.0283189,59997.0,59996.0,1e-06]
[1726663541447,3.0423189,59997.0,59996.0,1e-06]
[1726663541912,3.0283189,59997.0,59996.0,1e-06]
[1726663542175,3.0423189,59997.0,59996.0,1e-06]
[1726663547450,3.01615975,59997.0,59996.0,1e-06]
[1726663550295,3.04231908,59997.0,59996.0,1e-06]
[1726663554192,3.01615975,59997.0,59996.0,1e-06]
[1726663556338,3.04231903,59997.0,59996.0,1e-06]
[1726663556771,2.87923345,59997.0,59996.0,1e-06]
[1726663559564,2.88087545,59997.0,59996.0,1e-06]
[1726663564238,1.88103137,59997.0,59996.0,1e-06]
[1726663564476,1.82503137,59997.0,59996.0,1e-06]
[1726663565632,1.83403137,59997.0,59996.0,1e-06]
[1726663565872,1.46168137,59997.0,59996.0,1e-06]
[1726663566110,1.36168137,59997.0,59996.0,0.095001]
[1726663566353,1.34768137,59997.0,59996.0,0.095001]
[1726663566631,1.38583508,59997.0,59996.0,0.095001]
[1726663566851,1.37383508,59997.0,59996.0,0.095001]
[1726663567319,1.48183508,59997.0,59996.0,0.095001]
[1726663567797,0.21511008,59997.0,59996.0,0.5293408]
[1726663568053,0.0259027,59997.0,59996.0,0.7000178]
[1726663568309,0.0259027,59997.0,59996.0,0.7833435]
[1726663568563,0.00978119,59997.0,59996.0,1.1166985]
[1726663568785,0.009642,59997.0,59996.0,0.7833435]
[1726663569241,0.001642,59997.0,59996.0,0.7833435]
[1726663569691,0.001642,59997.0,59996.0,0.7853435]
[1726663570150,0.001642,59997.0,59996.0,0.6843587]
[1726663570397,0.002642,59997.0,59996.0,0.6843587]
[1726663570626,0.002642,59997.0,59996.0,1.0177137]
[1726663571068,0.001642,59997.0,59996.0,1.0157137]
[1726663571784,0.001642,59997.0,59996.0,0.6823587]
[1726663572528,0.001642,59997.0,59996.0,1.0157137]
[1726663572755,0.002642,59997.0,59996.0,1.0177137]
[1726663573011,0.001642,59997.0,59996.0,1.0157137]
[1726663573473,0.002642,59997.0,59996.0,1.0177137]
[1726663574347,0.001642,59997.0,59996.0,1.0157137]
[1726663574636,0.001644,60006.0,60005.0,0.837262]
[1726663574855,0.001644,60006.0,60005.0,1.0174877]
[1726663575084,0.01796254,60006.0,60005.0,1.0174877]
[1726663575369,0.001644,60006.0,60005.0,1.0174877]
[1726663575821,0.001644,60006.0,60005.0,0.6841827]
[1726663576334,0.66464767,60006.0,60005.0,0.1802257]
[1726663576558,0.166673,59998.0,59996.0,0.002001]
[1726663576836,0.44155645,60006.0,59996.0,1e-06]
[1726663576837,0.16305367,59997.0,59996.0,1e-06]
[1726663577053,0.16405367,59997.0,59996.0,0.003001]
[1726663577515,0.17937221,59997.0,59996.0,1e-06]
[1726663577983,0.34604721,59997.0,59996.0,1e-06]
[1726663578225,0.70554749,59997.0,59996.0,1e-06]
[1726663578473,0.37219749,59997.0,59996.0,0.002521]
[1726663578717,0.37219749,59997.0,59996.0,0.003521]
[1726663579577,0.70554749,59997.0,59996.0,0.003521]
[1726663580076,0.70554749,59997.0,59996.0,0.002521]
[1726663580516,0.70554749,59997.0,59996.0,0.005521]
[1726663580785,0.70554749,59997.0,59996.0,0.002521]
[1726663581234,0.70554749,59997.0,59996.0,0.004521]
[1726663582841,1.03889749,59997.0,59996.0,0.004521]
[1726663583506,1.37224749,59997.0,59996.0,0.004521]
[1726663583723,1.37205703,59997.0,59996.0,0.002521]
[1726663584184,1.34590675,59997.0,59996.0,0.004521]
[1726663584642,1.01419875,59997.0,59996.0,0.004521]
[1726663586490,1.0143557,59997.0,59996.0,0.004521]
[1726663587210,1.04050768,59997.0,59996.0,0.004521]
[1726663587676,1.04033397,59997.0,59996.0,0.004521]
[1726663591221,1.04033397,59997.0,59996.0,0.002001]
[1726663591910,1.04050768,59997.0,59996.0,0.002001]
[1726663592852,1.04050768,59997.0,59996.0,1e-06]
[1726663593347,1.04250768,59997.0,59996.0,1e-06]
[1726663594737,1.04050768,59997.0,59996.0,1e-06]
[1726663594972,1.04150768,59997.0,59996.0,1e-06]
[1726663600180,1.37485768,59997.0,59996.0,1e-06]
[1726663611298,1.04150768,59997.0,59996.0,1e-06]
[1726663614198,1.04150768,59997.0,59996.0,1e-06]
[1726663616061,1.37485768,59997.0,59996.0,1e-06]
[1726663619711,1.04150768,59997.0,59996.0,1e-06]
[1726663620644,1.0153557,59997.0,59996.0,1e-06]
[1726663621799,1.0153557,59997.0,59996.0,0.002521]
[1726663623146,1.0143557,59997.0,59996.0,0.002521]
[1726663623572,1.04050665,59997.0,59996.0,0.004521]
[1726663624433,1.04050665,59997.0,59996.0,0.002001]
[1726663624923,1.59716976,59997.0,59996.0,0.002001]
[1726663625141,1.59716976,59997.0,59996.0,1e-06]
[1726663625426,1.59816976,59997.0,59996.0,1e-06]
[1726663626097,1.62816976,59997.0,59996.0,1e-06]
[1726663627223,1.80226214,59997.0,59996.0,1e-06]
[1726663627672,1.80426214,59997.0,59996.0,1e-06]
[1726663628612,1.67324903,59997.0,59996.0,1e-06]
[1726663628845,1.14250665,59997.0,59996.0,1e-06]
[1726663629076,0.80915665,59997.0,59996.0,1e-06]
[1726663629557,0.80915665,59997.0,59996.0,0.002521]
[1726663629786,1.14250665,59997.0,59996.0,0.002521]
[1726663630526,1.14050665,59997.0,59996.0,0.002521]
[1726663630985,1.14050665,59997.0,59996.0,0.003521]
[1726663631210,1.14050665,59997.0,59996.0,0.002521]
[1726663631661,1.14050665,59997.0,59996.0,0.005521]
[1726663633339,1.14050665,59997.0,59996.0,0.00552072]
[1726663636800,0.80715665,59997.0,59996.0,0.00552072]
[1726663637070,0.7810057,59997.0,59996.0,0.00552072]
[1726663637778,0.6810057,59997.0,59996.0,0.00552072]
[1726663638210,0.6810057,59997.0,59996.0,0.00252072]
[1726663638683,0.6810057,59997.0,59996.0,0.00552072]
[1726663641613,0.70715591,59997.0,59996.0,0.00552072]
[1726663644336,1.04050591,59997.0,59996.0,0.00552072]
[1726663645033,1.0143557,59997.0,59996.0,0.00552072]
[1726663645545,1.0143557,59997.0,59996.0,0.00252072]
[1726663645766,1.0143557,59997.0,59996.0,0.00552072]
[1726663647876,1.5693057,59997.0,59996.0,0.00552072]
[1726663648112,1.5693057,59997.0,59996.0,0.00300072]
[1726663648769,1.5693057,59997.0,59996.0,7.2e-07]
[1726663649189,1.5974579,59997.0,59996.0,7.2e-07]
[1726663649418,1.5954579,59997.0,59996.0,7.2e-07]
[1726663650094,1.6034579,59997.0,59996.0,7.2e-07]
[1726663650543,1.61350191,59997.0,59996.0,7.2e-07]
[1726663650767,1.6034579,59997.0,59996.0,7.2e-07]
[1726663651505,0.05207923,59997.0,59996.0,1.31609195]
[1726663651720,0.001644,60006.0,60005.0,0.837262]
[1726663651979,0.001644,60006.0,60005.0,1.34654631]
[1726663652216,0.001644,60006.0,60005.0,1.7122771]
[1726663652455,0.001644,60012.0,60011.0,0.83718]
[1726663652688,0.001644,60012.0,60011.0,0.94071311]
[1726663653882,0.001644,60012.0,60011.0,0.506428]
[1726663654099,0.001644,60012.0,60011.0,0.510428]
[1726663654100,0.002644,60012.0,60011.0,0.510428]
[1726663654324,0.002644,60012.0,60011.0,0.8437]
[1726663657445,0.002644,60012.0,60011.0,0.510428]
[1726663657688,0.002644,60012.0,60011.0,0.8437]
[1726663657903,0.002644,60012.0,60011.0,0.510428]
[1726663658360,0.002644,60012.0,60011.0,0.8437]
[1726663659492,0.002644,60012.0,60011.0,0.510428]
[1726663659931,0.002644,60012.0,60011.0,0.8437]
[1726663660626,0.002644,60012.0,60011.0,0.510428]
[1726663662407,0.002644,60012.0,60011.0,0.8437]
[1726663662622,0.002644,60012.0,60011.0,0.510428]
[1726663663054,0.01580905,60012.0,60011.0,0.510428]